fUST/lending_fUST_20260315
["ID","MTS","AMOUNT","RATE_DAILY","PERIOD"]
[408388023,1773541838361,-1893.83264258,8.896e-05,2]
[408388024,1773541838370,-1000.0,9e-05,2]
[408388025,1773541838379,-1339.58783988,0.00010194,2]
[408388026,1773541838398,-930.48955912,0.00010194,2]
[408388027,1773541838407,-373.39825019,0.000102,2]
[408388028,1773541838416,-202.5372433,0.000102,2]
[408388029,1773541838426,-373.39825019,0.00010607,2]
[408388030,1773541838435,-373.39825019,0.00011014,2]
[408388031,1773541838445,-202.5372433,0.00011043,2]
[408388032,1773541838454,-535.4334435,0.00011217,4]
[408388033,1773541838469,-373.39825019,0.00011421,7]
[408388034,1773541838483,-2277.25991836,0.00011493,2]
[408388035,1773541838497,-151.157375,0.0001156,2]
[408388036,1773541838507,-373.39825019,0.00011828,7]
[408388037,1773541838517,-202.5372433,0.00011886,7]
[408388038,1773541838527,-405.8162583,0.00012055,2]
[408388039,1773541838539,-2141.733774,0.00012148,4]
[408388040,1773541838548,-373.39825019,0.00012234,7]
[408388041,1773541838559,-373.39825019,0.00012641,7]
[408388042,1773541838570,-202.5372433,0.00012729,7]
[408388043,1773541838579,-550.87799137,0.00012766,4]
[408388044,1773541838589,-2646.32215556,0.00012792,2]
[408388045,1773541838599,-484.29283496,0.000129,2]
[408388046,1773541838609,-373.39825019,0.00013048,7]
[408388047,1773541838619,-4818.90099151,0.00013078,4]
[408388048,1773541838630,-373.39825019,0.00013455,7]
[408388049,1773541838639,-202.5372433,0.00013571,7]
[408388050,1773541838651,-250.1502126,0.00013699,2]
[408388051,1773541838662,-1000.0,0.00013699,2]
[408388052,1773541838672,-1000.0,0.00013699,2]
[408388053,1773541838684,-484.29283492,0.00013731,2]
[408388054,1773541838695,-734.0,0.0001377,2]
[408388055,1773541838706,-183.0,0.0001377,2]
[408388056,1773541838718,-437.0,0.0001377,2]
[408388057,1773541838728,-373.39825019,0.00013862,14]
[408388058,1773541838738,-2841.30316952,0.0001409,2]
[408388059,1773541838748,-373.39825019,0.00014269,14]
[408388060,1773541838758,-208.527,0.00014367,2]
[408388061,1773541838768,-202.5372433,0.00014414,14]
[408388062,1773541838778,-2009.6473,0.00014504,2]
[408388063,1773541838788,-373.39825019,0.00014676,14]
[408388064,1773541838797,-203.49175212,0.000149,2]
[408388065,1773541838808,-203.49175212,0.000149,2]
[408388066,1773541838818,-203.49175212,0.000149,2]
[408388067,1773541838828,-270.83333333,0.00015,2]
[408388068,1773541838837,-373.39825019,0.00015083,14]
[408388069,1773541838846,-199.73987049,0.00015099,2]
[408388070,1773541838857,-537.6845,0.00015099,2]
[408388071,1773541838867,-2150.738,0.00015099,2]
[408388072,1773541838876,-202.5372433,0.00015257,14]
[408388073,1773541838886,-500.59899602,0.00015276,5]
[408388074,1773541838897,-2268.56217227,0.00015389,2]
[408388075,1773541838912,-754.00473984,0.00015389,2]
[408388076,1773541838922,-175.04554884,0.0001548,2]
[408388077,1773541838931,-700.18219535,0.0001548,2]
[408388078,1773541838941,-1575.40993953,0.0001548,2]
[408388079,1773541838950,-1966.15618599,0.0001548,2]
[408388080,1773541838961,-834.5725954,0.0001548,2]
[408388081,1773541838971,-4376.13872092,0.0001548,2]
[408388082,1773541838981,-195.10262195,0.0001548,2]
[408388083,1773541838990,-780.41048778,0.0001548,2]
[408388084,1773541839000,-1755.92359751,0.0001548,2]
[408388085,1773541839009,-2719.71712899,0.0001548,2]
[408388096,1773541840727,-1939.70247835,0.0001548,2]
[408388102,1773541840784,-1635.91851102,0.0001548,2]
[408388104,1773541840794,-373.39825019,0.0001549,14]
[408388106,1773541840804,-151.0,0.00015563,2]
[408388108,1773541840814,-643.07578247,0.00015647,2]
[408388110,1773541840823,-1917.63673741,0.00015647,2]
[408388112,1773541840835,-312.67856859,0.00015647,2]
[408388114,1773541840844,-874.2879506,0.000158,2]
[408388116,1773541840855,-125.7120494,0.000158,2]
[408388117,1773541840864,-623.8679506,0.00015808,4]
[408388296,1773541843454,-105.2209014,0.00015808,4]
[408388297,1773541843467,-400.0,0.00015808,4]
[408388298,1773541843479,-1074.4231135,0.00015808,4]
[408388299,1773541843489,-406.4232934,0.00015883,2]
[408388300,1773541843502,-373.39825019,0.00015896,14]
[408388301,1773541843513,-209.87936993,0.00015999,2]
[408388302,1773541843524,-998.29796761,0.00016,2]
[408388303,1773541843535,-187.07650046,0.00016,2]
[408388311,1773541846287,-1425.81644933,0.00015724,2]
[408388312,1773541846299,-1689.31241183,0.00015724,2]
[408388313,1773541846310,-2544.0765955,0.00016,2]
[408388314,1773541846320,-2453.49552931,0.00016,2]
[408388315,1773541846329,-2253.61895204,0.00016,2]
[408388316,1773541846339,-2492.38602396,0.00016,2]
[408388317,1773541846348,-484.29283492,0.00016003,2]
[408388318,1773541846358,-5000.0,0.00016006,2]
[408388319,1773541846367,-7352.24294003,0.00016007,2]
[408388320,1773541846378,-1000.0,0.00016007,2]
[408388321,1773541846387,-1000.0,0.00016007,2]
[408388322,1773541846396,-1000.0,0.00016007,2]
[408388323,1773541846407,-1000.0,0.00016007,2]
[408388324,1773541846419,-1000.0,0.00016007,2]
[408388325,1773541846429,-1000.0,0.00016007,2]
[408388326,1773541846438,-1000.0,0.00016007,2]
[408388327,1773541846447,-1000.0,0.00016007,2]
[408388328,1773541846456,-1000.0,0.00016007,2]
[408388329,1773541846465,-1000.0,0.00016007,2]
[408388330,1773541846474,-347.60507313,0.00016007,2]
[408388367,1773543032245,-5000.0,9.732e-05,2]
[408388368,1773543032254,-558.0,9.83e-05,2]
[408388369,1773543032263,-1000.0,0.00013699,2]
[408388370,1773543032272,-300.0,0.00014447,2]
[408388371,1773543032281,-166.821,0.00014878,2]
[408388372,1773543032292,-270.83333333,0.00015,2]
[408388373,1773543032301,-500.0,0.000154,2]
[408388374,1773543032310,-500.0,0.000154,2]
[408388375,1773543032319,-746.27971312,0.000154,2]
[408388376,1773543032330,-53.56706636,0.000154,2]
[408388377,1773543032338,-492.27006303,0.000154,2]
[408388595,1773543038397,-8.43014272,0.000154,2]
[408388596,1773543038407,-500.0,0.000154,2]
[408388597,1773543038416,-500.0,0.000154,2]
[408388598,1773543038426,-500.0,0.000154,2]
[408388599,1773543038435,-500.0,0.000154,2]
[408388600,1773543038445,-500.0,0.000154,2]
[408388601,1773543038454,-203.70718528,0.000154,2]
[408388602,1773543038482,-296.29281472,0.000154,2]
[408388603,1773543038491,-500.0,0.000154,2]
[408388604,1773543038501,-500.0,0.000154,2]
[408388605,1773543038511,-500.0,0.000154,2]
[408388606,1773543038521,-500.0,0.000154,2]
[408388607,1773543038530,-311.07762674,0.000154,2]
[408388608,1773543038541,-188.92237326,0.000154,2]
[408388609,1773543038550,-500.0,0.000154,2]
[408388610,1773543038559,-500.0,0.000154,2]
[408388611,1773543038568,-500.0,0.000154,2]
[408388612,1773543038577,-500.0,0.000154,2]
[408388613,1773543038587,-500.0,0.000154,2]
[408388614,1773543038596,-500.0,0.000154,2]
[408388615,1773543038605,-336.3440451,0.000154,2]
[408388635,1773543046485,-249.521,0.00014448,2]
[408388636,1773543046497,-1977.08287276,0.00015246,2]
[408388637,1773543046696,-484.14,0.00015246,2]
[408388728,1773544232375,-756.05167505,0.00011089,2]
[408388730,1773544232387,-362.48909685,0.00011089,2]
[408388732,1773544232397,-576.0,0.00011089,2]
[408388734,1773544232407,-1200.0,0.000112,2]
[408388736,1773544232416,-5000.0,0.00011201,2]
[408388738,1773544232426,-300.0,0.00011213,2]
[408388740,1773544232434,-5698.1758379,0.00011214,2]
[408388743,1773544232448,-931.85262945,0.00011214,2]
[408388745,1773544232459,-840.97591378,0.00011214,2]
[408388747,1773544232471,-631.87264066,0.00011214,2]
[408388839,1773544238884,-990.72703622,0.00011214,2]
[408388844,1773544241030,-3161.85952668,0.00011214,2]
[408388845,1773544241085,-2279.5,0.00011214,2]
[408388862,1773544246638,-4523.78118338,0.00011214,2]
[408388881,1773544246798,-9255.28352557,0.00011214,2]
[408388925,1773545431566,-3208.81236043,9.989e-05,2]
[408388927,1773545431578,-1791.18763957,9.989e-05,2]
[408388928,1773545431587,-561.0,0.0001009,2]
[408388929,1773545431597,-300.0,0.00010196,2]
[408388930,1773545431607,-300.0,0.00010196,2]
[408388931,1773545431616,-300.0,0.00010196,2]
[408388932,1773545431625,-1200.0,0.00010196,2]
[408388933,1773545431636,-300.0,0.00010298,2]
[408388934,1773545431646,-300.0,0.00010298,2]
[408388935,1773545431656,-300.0,0.00010298,2]
[408388936,1773545431666,-300.0,0.00010298,2]
[408388937,1773545431675,-300.0,0.00010298,2]
[408388938,1773545431684,-300.0,0.00010298,2]
[408388939,1773545431693,-300.0,0.00010298,2]
[408388940,1773545431702,-300.0,0.00010298,2]
[408388941,1773545431711,-300.0,0.00010298,2]
[408388942,1773545431720,-300.0,0.00010298,2]
[408388943,1773545431733,-300.0,0.00010298,2]
[408388944,1773545431743,-300.0,0.00010298,2]
[408388945,1773545431752,-300.0,0.00010298,2]
[408388946,1773545431761,-300.0,0.00010298,2]
[408388947,1773545431772,-300.0,0.00010298,2]
[408388948,1773545431781,-47.81235843,0.000104,2]
[408388949,1773545431795,-2205.82722795,0.000104,2]
[408388950,1773545431804,-157.00093067,0.000104,2]
[408388951,1773545431813,-281.61411576,0.000104,2]
[408388952,1773545431823,-279.52469218,0.00010503,2]
[408388953,1773545431835,-320.47530782,0.00010503,2]
[408388954,1773545431845,-316.54518744,0.00011079,2]
[408388955,1773545431856,-1070.32555272,0.00011079,2]
[408388956,1773545431871,-3290.95106656,0.00011179,2]
[408388957,1773545431883,-785.3648146,0.00011179,2]
[408388958,1773545431895,-594.54488708,0.00011179,2]
[408388978,1773545437784,-11314.4342399,0.00011179,2]
[408388979,1773545437840,-38967.21814576,0.00011179,2]
[408388980,1773545437851,-2744.19607575,0.00011179,2]
[408388981,1773545437861,-4101.52141133,0.00011279,2]
[408388982,1773545437876,-4377.88501625,0.00011379,2]
[408388983,1773545437886,-5241.88435754,0.00011479,2]
[408388984,1773545437896,-720.0,0.00011553,2]
[408388985,1773545437907,-2473.45408912,0.00011579,2]
[408389192,1773545446095,-540.92371165,0.00011079,2]
[408389193,1773545446107,-2997.23367833,0.00011079,2]
[408389194,1773545446118,-3030.44044805,0.00011079,2]
[408389195,1773545446128,-300.0,0.00011401,2]
[408389196,1773545446137,-300.0,0.00011401,2]
[408389197,1773545446147,-300.0,0.00011401,2]
[408389198,1773545446156,-300.0,0.00011401,2]
[408389199,1773545446166,-300.0,0.00011401,2]
[408389200,1773545446176,-300.0,0.00011401,2]
[408389201,1773545446186,-300.0,0.00011401,2]
[408389202,1773545446196,-300.0,0.00011401,2]
[408389203,1773545446205,-300.0,0.00011401,2]
[408389204,1773545446215,-300.0,0.00011401,2]
[408389205,1773545446225,-300.0,0.00011401,2]
[408389206,1773545446234,-759.645907,0.00011463,2]
[408389207,1773545446249,-2358.87440217,0.00011463,2]
[408389208,1773545446258,-2985.3926578,0.00011579,2]
[408389209,1773545446267,-162.1744916,0.00011676,2]
[408389210,1773545446276,-6105.88369899,0.00011679,2]
[408389211,1773545446285,-196.5356493,0.0001215,2]
[408389212,1773545446295,-500.0,0.000123,2]
[408389213,1773545446304,-500.0,0.000123,2]
[408389214,1773545446313,-6816.1720825,0.00012328,2]
[408389215,1773545446322,-705.1097354,0.00012749,2]
[408389216,1773545446331,-1000.0,0.00012848,2]
[408389217,1773545446340,-212.13736991,0.00012848,2]
[408389218,1773545446349,-302.68302186,0.000129,2]
[408389219,1773545446358,-500.0,0.0001304,2]
[408389220,1773545446368,-2464.0132114,0.00013375,2]
[408389254,1773546631777,-891.0,0.00010949,2]
[408389255,1773546631789,-500.0,0.00010949,2]
[408389263,1773546638008,-3583.73877053,0.00010949,2]
[408389264,1773546638022,-25.26122947,0.00010949,2]
[408389265,1773546638032,-202.85453054,0.0001106,20]
[408389266,1773546638043,-575.0,0.0001106,2]
[408389267,1773546638052,-196.5356493,0.00011399,2]
[408389268,1773546638061,-480.0,0.00011619,2]
[408389269,1773546638071,-309.29598109,0.0001162,2]
[408389270,1773546638080,-1237.18392436,0.0001162,2]
[408389271,1773546638089,-236.0,0.00011656,2]
[408389272,1773546638098,-300.0,0.00011656,2]
[408389273,1773546638108,-234.73355708,0.00011657,2]
[408389274,1773546638117,-938.93422831,0.00011657,2]
[408389275,1773546638127,-2110.48941169,0.00011657,2]
[408389276,1773546638137,-300.0,0.00011889,2]
[408389277,1773546638147,-300.0,0.00011889,2]
[408389278,1773546638157,-300.0,0.00011889,2]
[408389279,1773546638167,-300.0,0.00011889,2]
[408389280,1773546638181,-300.0,0.00011889,2]
[408389281,1773546638192,-300.0,0.00011889,2]
[408389282,1773546638201,-300.0,0.00011889,2]
[408389283,1773546638211,-300.0,0.00011889,2]
[408389284,1773546638222,-300.0,0.00011889,2]
[408389285,1773546638231,-300.0,0.00011889,2]
[408389286,1773546638240,-300.0,0.00011889,2]
[408389287,1773546638250,-83.41031335,0.00011889,2]
[408389288,1773546638261,-216.58968665,0.00011889,2]
[408389289,1773546638271,-300.0,0.00011889,2]
[408389290,1773546638280,-300.0,0.00011889,2]
[408389291,1773546638290,-300.0,0.00011889,2]
[408389292,1773546638299,-598.07029971,0.00012126,2]
[408389646,1773546643274,-478.55877297,0.0001162,2]
[408389651,1773546646030,-253.39895568,0.0001162,2]
[408389652,1773546646041,-555.50363335,0.00011657,2]
[408389653,1773546646051,-1.92970029,0.00012126,2]
[408389654,1773546646060,-742.5095557,0.00012528,2]
[408389655,1773546646069,-375.76766482,0.00013,2]
[408389656,1773546646080,-124.23233518,0.00013,2]
[408389657,1773546646090,-720.0,0.00013338,2]
[408389658,1773546646099,-500.0,0.00013367,2]
[408389659,1773546646113,-4505.86982904,0.00013375,2]
[408389660,1773546646122,-158.134612,0.00013486,2]
[408389661,1773546646132,-1000.0,0.00013548,2]
[408389662,1773546646141,-1500.0,0.00013697,2]
[408389663,1773546646151,-1500.0,0.00013697,2]
[408389664,1773546646160,-493.38809313,0.00013697,2]
[408389665,1773546646174,-1006.61190687,0.00013697,2]
[408389666,1773546646183,-1500.0,0.00013697,2]
[408389667,1773546646194,-1500.0,0.00013697,2]
[408389668,1773546646203,-1500.0,0.00013697,2]
[408389669,1773546646213,-1500.0,0.00013697,2]
[408389670,1773546646223,-1500.0,0.00013697,2]
[408389671,1773546646233,-1500.0,0.00013697,2]
[408389672,1773546646242,-1500.0,0.00013697,2]
[408389673,1773546646252,-1500.0,0.00013697,2]
[408389674,1773546646261,-1500.0,0.00013697,2]
[408389675,1773546646271,-1500.0,0.00013697,2]
[408389676,1773546646281,-1500.0,0.00013697,2]
[408389677,1773546646291,-1500.0,0.00013697,2]
[408389678,1773546646302,-1500.0,0.00013697,2]
[408389679,1773546646312,-1500.0,0.00013697,2]
[408389680,1773546646322,-1500.0,0.00013697,2]
[408389681,1773546646332,-1500.0,0.00013697,2]
[408389682,1773546646341,-1500.0,0.00013697,2]
[408389683,1773546646351,-1500.0,0.00013697,2]
[408389684,1773546646361,-1500.0,0.00013697,2]
[408389685,1773546646372,-1500.0,0.00013697,2]
[408389686,1773546646382,-1500.0,0.00013697,2]
[408389687,1773546646391,-1500.0,0.00013697,2]
[408389688,1773546646402,-1500.0,0.00013697,2]
[408389689,1773546646412,-1500.0,0.00013697,2]
[408389690,1773546646423,-1500.0,0.00013697,2]
[408389691,1773546646433,-1500.0,0.00013697,2]
[408389692,1773546646443,-1500.0,0.00013697,2]
[408389693,1773546646452,-1500.0,0.00013697,2]
[408389694,1773546646461,-1500.0,0.00013697,2]
[408389695,1773546646470,-1500.0,0.00013697,2]
[408389696,1773546646479,-1500.0,0.00013697,2]
[408389697,1773546646488,-1500.0,0.00013697,2]
[408389698,1773546646498,-1500.0,0.00013697,2]
[408389699,1773546646507,-1500.0,0.00013697,2]
[408389700,1773546646517,-1500.0,0.00013697,2]
[408389701,1773546646526,-1500.0,0.00013697,2]
[408389702,1773546646535,-1500.0,0.00013697,2]
[408389703,1773546646544,-1500.0,0.00013697,2]
[408389704,1773546646553,-1500.0,0.00013697,2]
[408389705,1773546646562,-1500.0,0.00013697,2]
[408389706,1773546646571,-1500.0,0.00013697,2]
[408389707,1773546646580,-1500.0,0.00013697,2]
[408389708,1773546646589,-1500.0,0.00013697,2]
[408389709,1773546646598,-1500.0,0.00013697,2]
[408389710,1773546646606,-1500.0,0.00013697,2]
[408389711,1773546646615,-1500.0,0.00013697,2]
[408389712,1773546646624,-1500.0,0.00013697,2]
[408389713,1773546646633,-1500.0,0.00013697,2]
[408389714,1773546646642,-1500.0,0.00013697,2]
[408389715,1773546646651,-1500.0,0.00013697,2]
[408389716,1773546646660,-1500.0,0.00013697,2]
[408389717,1773546646668,-1500.0,0.00013697,2]
[408389718,1773546646678,-1500.0,0.00013697,2]
[408389719,1773546646686,-1500.0,0.00013697,2]
[408389720,1773546646695,-1500.0,0.00013697,2]
[408389721,1773546646704,-1417.39268414,0.00013697,2]
[408389750,1773547231037,-5000.0,0.0002,120]
[408390243,1773547843275,-281.00721637,9.309e-05,2]
[408390245,1773547843284,-157.86299932,9.409e-05,2]
[408390318,1773547846189,-280.70606371,9.409e-05,2]
[408390319,1773547846202,-4561.43093697,9.409e-05,2]
[408390320,1773547846212,-1200.0,9.503e-05,2]
[408390321,1773547846221,-5000.0,9.504e-05,2]
[408390322,1773547846230,-553.0,9.504e-05,2]
[408390323,1773547846240,-300.0,9.792e-05,2]
[408390324,1773547846249,-300.0,9.792e-05,2]
[408390325,1773547846258,-300.0,9.792e-05,2]
[408390326,1773547846267,-300.0,9.792e-05,2]
[408390327,1773547846276,-300.0,9.793e-05,2]
[408390328,1773547846285,-3764.371439,0.00010074,2]
[408390329,1773547846294,-8494.31307207,0.00010274,2]
[408390330,1773547846303,-300.0,0.00010296,2]
[408390331,1773547846313,-300.0,0.00010296,2]
[408390332,1773547846322,-300.0,0.00010296,2]
[408390333,1773547846331,-300.0,0.00010296,2]
[408390334,1773547846340,-300.0,0.00010296,2]
[408390335,1773547846350,-300.0,0.00010296,2]
[408390336,1773547846359,-300.0,0.00010296,2]
[408390337,1773547846368,-300.0,0.00010296,2]
[408390338,1773547846377,-300.0,0.00010296,2]
[408390339,1773547846386,-300.0,0.00010296,2]
[408390340,1773547846395,-300.0,0.00010296,2]
[408390341,1773547846407,-300.0,0.00010296,2]
[408390342,1773547846416,-300.0,0.00010296,2]
[408390343,1773547846425,-300.0,0.00010296,2]
[408390344,1773547846435,-300.0,0.00010296,2]
[408390345,1773547846443,-166.821,0.000103,2]
[408390346,1773547846453,-500.0,0.00010373,2]
[408390347,1773547846462,-500.0,0.00010373,2]
[408390348,1773547846470,-380.34046257,0.00010373,2]
[408390349,1773547846478,-203.34934334,0.00010373,2]
[408390350,1773547846487,-9242.19759101,0.00010374,2]
[408390351,1773547846496,-202.78404173,0.000104,2]
[408390352,1773547846505,-9400.15919249,0.00010474,2]
[408390353,1773547846514,-420.0,0.00010771,2]
[408390354,1773547846526,-420.0,0.00011848,2]
[408390355,1773547846536,-14019.20742349,0.00013,2]
[408390356,1773547846555,-1846.03251703,0.00013,2]
[408390357,1773547846565,-218.6241407,0.00013076,2]
[408390358,1773547846574,-600.0,0.00013259,2]
[408390359,1773547846583,-3535.34334227,0.00013441,2]
[408390377,1773548403372,161.88,2e-05,2]
[408390379,1773548544303,-1604.30707826,2.254e-05,2]
[408390380,1773548544326,-5000.0,2.277e-05,2]
[408390381,1773548544346,-915.85,2.3e-05,2]
[408390382,1773548544367,-998.90663349,8.569e-05,2]
[408390383,1773548879328,-1829.80752793,6.857e-05,2]
[408390384,1773548879351,-5000.0,8.57e-05,2]
[408390684,1773549038347,-1148.23214423,8.468e-05,2]
[408390928,1773549040801,-258.59960776,8.468e-05,2]
[408391061,1773549043471,-3593.16824801,8.468e-05,2]
[408391063,1773549043480,-228.96857739,8.553e-05,2]
[408391065,1773549043490,-228.96857739,8.724e-05,7]
[408391067,1773549043499,-5000.0,0.00010197,2]
[408391069,1773549043511,-563.0,0.00010197,2]
[408391072,1773549043523,-350.0,0.000103,2]
[408391074,1773549043532,-300.0,0.000104,2]
[408391076,1773549043541,-300.0,0.000104,2]
[408391078,1773549043551,-300.0,0.000104,2]
[408391080,1773549043560,-300.0,0.000104,2]
[408391082,1773549043569,-300.0,0.000104,2]
[408391084,1773549043578,-300.0,0.000104,2]
[408391086,1773549043587,-300.0,0.000104,2]
[408391088,1773549043596,-300.0,0.000104,2]
[408391090,1773549043605,-300.0,0.000104,2]
[408391092,1773549043614,-300.0,0.000104,2]
[408391094,1773549043623,-300.0,0.000104,2]
[408391097,1773549043633,-300.0,0.000104,2]
[408391099,1773549043642,-300.0,0.000104,2]
[408391102,1773549043651,-300.0,0.000104,2]
[408391105,1773549043660,-300.0,0.000104,2]
[408391107,1773549043669,-500.0,0.00010535,2]
[408391109,1773549043677,-600.0,0.00010607,2]
[408391111,1773549043686,-500.0,0.00011089,2]
[408391113,1773549043695,-176.13246964,0.00011643,2]
[408391115,1773549043705,-720.0,0.00011668,2]
[408391117,1773549043714,-864.0,0.00012834,2]
[408391118,1773549043724,-114.52968891,0.00013,2]
[408391121,1773549043735,-135.47031109,0.00013,2]
[408391123,1773549043745,-186.6626492,0.00013123,2]
[408391125,1773549043754,-158.134612,0.00013196,2]
[408391127,1773549043763,-327.22497826,0.00013252,2]
[408391129,1773549043772,-3423.09980773,0.00013454,2]
[408391277,1773549046312,-800.91764172,0.00013454,2]
[408391431,1773550202796,160.28,2e-05,2]
[408391450,1773550232260,-228.96857738,8.369e-05,14]
[408391452,1773550232271,-4005.00760582,9.614e-05,2]
[408391454,1773550232280,-5000.0,9.711e-05,2]
[408391456,1773550232289,-556.0,9.711e-05,2]
[408391458,1773550232299,-566.0,9.808e-05,2]
[408391460,1773550232310,-300.0,9.904e-05,2]
[408391463,1773550232319,-300.0,9.904e-05,2]
[408391466,1773550232329,-300.0,9.904e-05,2]
[408391468,1773550232338,-300.0,9.904e-05,2]
[408391470,1773550232349,-300.0,9.904e-05,2]
[408391472,1773550232358,-300.0,9.904e-05,2]
[408391474,1773550232367,-300.0,9.904e-05,2]
[408391476,1773550232376,-300.0,9.904e-05,2]
[408391478,1773550232385,-300.0,9.904e-05,2]
[408391480,1773550232393,-300.0,0.00010416,2]
[408391482,1773550232403,-300.0,0.00010416,2]
[408391484,1773550232412,-300.0,0.00010416,2]
[408391485,1773550232421,-300.0,0.00010416,2]
[408391487,1773550232431,-1421.47807692,0.00010418,2]
[408391489,1773550232443,-2809.1316304,0.00010518,2]
[408391491,1773550232452,-903.20504267,0.00010618,2]
[408391645,1773550238403,-300.0,9.904e-05,2]
[408391646,1773550238418,-300.0,9.904e-05,2]
[408391647,1773550238428,-300.0,9.904e-05,2]
[408391648,1773550238438,-300.0,9.904e-05,2]
[408391649,1773550238448,-300.0,9.904e-05,2]
[408391650,1773550238458,-300.0,9.904e-05,2]
[408391652,1773550238468,-2171.05606466,0.00010618,2]
[408391653,1773550238478,-3302.61451702,0.00010718,2]
[408391654,1773550238489,-386.76159344,0.00010818,2]
[408391655,1773550238502,-1134.089456,0.00010818,2]
[408391656,1773550238528,-2010.11687737,0.00010818,2]
[408391657,1773550238539,-959.77625735,0.00010918,2]
[408391808,1773550243598,-443.0,0.00010918,2]
[408391812,1773550244991,-484.0,0.00010918,2]
[408391813,1773550245049,-1769.05964071,0.00010918,2]
[408391818,1773550246696,-103.48543853,0.00010918,2]
[408391819,1773550246705,-215.2692097,0.00011362,2]
[408391820,1773550246714,-922.23494518,0.00011362,2]
[408391821,1773550246724,-3987.67474638,0.00011883,2]
[408391822,1773550246733,-283.88996739,0.000129,2]
[408391823,1773550246742,-251.0284172,0.00012961,2]
[408391824,1773550246751,-4196.78518388,0.00013031,2]
[408391825,1773550246759,-3265.512666,0.00013216,2]
[408391826,1773550246767,-151.0,0.00013231,2]
[408391827,1773550246775,-2150.738,0.00013231,2]
[408391829,1773550246783,-4866.28335728,0.00013254,2]
[408391830,1773550246792,-6321.34231147,0.0001335,2]
[408391831,1773550246803,-3243.02942361,0.0001335,2]
[408391876,1773551438620,-2765.0,5.8e-05,2]
[408391877,1773551438635,-2235.0,5.8e-05,2]
[408391878,1773551438646,-504.0,5.859e-05,2]
[408391879,1773551438656,-300.0,6.157e-05,2]
[408391880,1773551438665,-300.0,6.158e-05,2]
[408391881,1773551438675,-300.0,6.158e-05,2]
[408391883,1773551438688,-300.0,6.158e-05,2]
[408391884,1773551438699,-300.0,6.158e-05,2]
[408391885,1773551438710,-300.0,6.158e-05,2]
[408391886,1773551438720,-300.0,6.158e-05,2]
[408391887,1773551438730,-300.0,6.158e-05,2]
[408391888,1773551438739,-300.0,6.158e-05,2]
[408391889,1773551438749,-300.0,6.158e-05,2]
[408391890,1773551438760,-300.0,6.158e-05,2]
[408391891,1773551438770,-300.0,6.158e-05,2]
[408391892,1773551438779,-300.0,6.158e-05,2]
[408391893,1773551438788,-300.0,6.158e-05,2]
[408391894,1773551438798,-300.0,6.158e-05,2]
[408391895,1773551438808,-300.0,6.158e-05,2]
[408391896,1773551438818,-590.57980152,6.16e-05,2]
[408391897,1773551438828,-500.27472603,6.16e-05,2]
[408391898,1773551438838,-500.0,6.16e-05,2]
[408391899,1773551438848,-500.0,6.16e-05,2]
[408391900,1773551438857,-197.905555,6.161e-05,2]
[408391901,1773551438867,-600.0,6.28e-05,2]
[408391902,1773551438876,-501.74593652,6.625e-05,2]
[408391903,1773551438886,-500.62805807,6.625e-05,2]
[408391904,1773551438897,-473.45805599,6.625e-05,2]
[408391905,1773551438907,-405.16589977,6.637e-05,2]
[408391906,1773551438916,-1000.0,6.708e-05,2]
[408391907,1773551438927,-500.0,6.708e-05,2]
[408391908,1773551438937,-500.92533934,6.763e-05,2]
[408391909,1773551438946,-501.07462103,6.763e-05,2]
[408391910,1773551438960,-500.0,6.816e-05,2]
[408391911,1773551438970,-500.11553942,6.816e-05,2]
[408391912,1773551438979,-500.22385238,6.854e-05,2]
[408391913,1773551438988,-500.12204034,6.854e-05,2]